Cogmind - Beta 13 @@@ ROGUE MODE // 2024.06.14 @ 21:26:19 Player: Punknium Result: Destroyed by G-34 Mercenary with Small Laser Performance ------------- Evolutions (0) 0 Regions Visited (1) 200 Robots Destroyed (15) 75 Value Destroyed (254) 254 Prototype IDs (0) 0 Alien Tech Used (0) 0 Bonus (0) 0 TOTAL SCORE: 529 Bonus ------- None Cogmind --------- Core Integrity 0/250 Matter 119/400 Energy 100/100 System Corruption 0% Temperature Cool (6) Movement Flying (1720) Ox21 Location -10/Materials Parts ------- > --- POWER (1) -------- (None) > --- PROPULSION (2) --- Flight Unit > --- UTILITY (2) ------ Huge Storage Unit Medium Matter Pod > --- WEAPON (2) ------- Assault Rifle Light Assault Rifle > --- INVENTORY (25) --- Small Laser Assault Rifle Peak State ------------ > --- POWER ------------ Light Ion Engine > --- PROPULSION ------- Aluminum Leg Aluminum Leg > --- UTILITY ---------- Large Storage Unit Large Storage Unit > --- WEAPON ----------- Light Assault Rifle Light Assault Rifle > --- INVENTORY -------- Small Laser Assault Rifle [Rating: 7] Favorites ----------- Power Light Ion Engine Engine Light Ion Engine Propulsion Aluminum Leg Leg Aluminum Leg Wheel Compact Wheel Flight Unit Flight Unit Utility Medium Matter Pod Storage Medium Matter Pod Weapon Light Assault Rifle Energy Gun Small Laser Ballistic Gun Light Assault Rifle Launcher Grenade Launcher Build | -11 -10 ------- Run | Yrd Mat Slots Evolved . | . . Power . | . . Propulsion . | . . Utility . | . . Weapon . | . . Parts Attached 20 | 5 15 Power 2 | 1 1 Engine 2 | 1 1 Core . | . . Reactor . | . . Propulsion 6 | 2 4 Treads . | . . Leg 2 | 2 . Wheel 2 | . 2 Hover . | . . Flight 2 | . 2 Utility 4 | . 4 Device . | . . Storage 4 | . 4 Processor . | . . Hackware . | . . Protection . | . . Artifact . | . . Weapon 8 | 2 6 Energy Gun 1 | . 1 Energy Cannon . | . . Ballistic Gun 6 | 2 4 Ballistic Cannon . | . . Launcher 1 | . 1 Special Weapon . | . . Impact Weapon . | . . Slashing Weapon . | . . Piercing Weapon . | . . Special Melee Weapon . | . . Unidentified Prototypes . | . . Parts Lost 6 | . 6 Power 2 | . 2 Propulsion 3 | . 3 Utility . | . . Weapon 1 | . 1 Highest Loss Streak 3 | . 3 To Critical Strikes . | . . Average Slot Usage (%) 80 | . 80 Engine 9 | . 9 Leg 10 | . 10 Wheel 3 | . 3 Flight 1 | . 1 Storage 26 | . 26 Energy Gun 4 | . 4 Ballistic Gun 21 | . 21 Naked Turns . | . . Heaviest Build 91 | 5 91 Greatest Support 20 | 20 20 Greatest Overweight (x) 28 | . 28 Average Overweight (x) 4 | . 5 Largest Inventory Capacity 25 | 5 25 Average Capacity 22 | 5 23 Most Carried 5 | 2 5 Average Carried 2 | . 2 Final Capacity 25 | 5 25 Final Carried 2 | 2 2 Class Distribution -------------------- 96% | Mutant 3% | Scavenger-Mutant Dominant Class ---------------- Mutant | -10/Materials Resources | -11 -10 ----------- Run | Yrd Mat Matter Collected 353 | 252 101 Remotely . | . . Salvage Created 287 | 37 250 Parts 25 | 1 24 Haulers Intercepted . | . . Recyclers Shooed . | . . Parts Field Recycled . | . . Retrieved Matter . | . . Parts Self-Destructed . | . . Prevented . | . . Kills | -11 -10 ------- Run | Yrd Mat Combat Hostiles Destroyed 12 | 1 11 Guns 9 | 1 8 AOE 3 | . 3 Classes Destroyed 5 | 1 4 Builder 1 | . 1 Tunneler 1 | . 1 Recycler 1 | . 1 Swarmer 8 | . 8 Grunt 4 | 1 3 Best Kill Streak 5 | 1 5 Combat Bots Only 3 | 1 3 Max Kills in Single Turn 3 | 1 3 Gunslinging . | . . Exploded 1 | . 1 Melee . | . . Uniques/NPCs Destroyed . | . . Combat | -11 -10 -------- Run | Yrd Mat Hostile Shots Fired 105 | 3 102 Missed 25 | 1 24 Damage Taken 968 | 23 945 Core 257 | 12 245 Absorbed by Shields . | . . Core Remaining (%) 95 | 95 . Volleys Fired 48 | 4 44 Largest 2 | 2 2 Hottest 60 | 40 60 Shots Fired 90 | 8 82 Gun 86 | 8 78 Cannon . | . . Launcher 4 | . 4 Special . | . . Kinetic 84 | 8 76 Thermal 2 | . 2 Explosive 4 | . 4 Electromagnetic . | . . Robot Hit Streak 6 | 3 6 Robot Miss Streak 9 | 2 9 Penetration Max . | . . Secondary Targets 2 | . 2 Max Gunslinging Chain 1 | . 1 Shots Hit Robots 46 | 5 41 Core Hits 27 | 3 24 Critical Kills 1 | . 1 Critical Parts Destroyed 2 | . 2 Critical Strikes 3 | . 3 Destroy 3 | . 3 Melee Attacks . | . . Impact . | . . Slashing . | . . Piercing . | . . Sneak Attacks . | . . Combat Hostiles . | . . Follow-up Attacks . | . . Damage Inflicted 846 | 38 808 Guns 440 | 38 402 Cannons . | . . Explosions 406 | . 406 Melee . | . . Ramming . | . . Kinetic 440 | 38 402 Thermal . | . . Explosive 406 | . 406 Electromagnetic . | . . Impact . | . . Slashing . | . . Piercing . | . . Highest Corruption . | . . Average Corruption . | . . Corruption Purged . | . . Corruption Blocked . | . . Overload Shots . | . . Overflow Damage 58 | . 58 Projectiles . | . . Explosions 58 | . 58 Melee . | . . Knockbacks . | . . Impact . | . . Kinetic . | . . Secondary . | . . Self-Inflicted Damage 199 | . 199 Shots 5 | . 5 Rammed . | . . Targets Rammed . | . . Kicked . | . . Crushed . | . . Highest Temperature 16 | 6 16 Average Temperature 6 | 6 6 Received Heat Transfer 240 | 12 228 Siege Activations . | . . Robots Corrupted . | . . Combat Hostiles . | . . Parts Fried . | . . Impact Corruptions . | . . Robots Melted . | . . Combat Hostiles . | . . Parts Melted . | . . Heat Transferred . | . . Parts Sabotaged . | . . Parts Stolen . | . . Parts Stripped . | . . Power Chain Reactions . | . . Alert | -11 -10 ------- Run | Yrd Mat Peak Influence 188 | 20 188 Initial 13 | . 13 Average 46 | 2 50 Maximum Alert Level . | . . Low Security (%) 100 | 100 100 Level 1 . | . . Level 2 . | . . Level 3 . | . . Level 4 . | . . Level 5 . | . . High Security . | . . Max Security . | . . Squads Dispatched 2 | . 2 Investigation . | . . Extermination . | . . Reinforcement 2 | . 2 Assault . | . . Garrison . | . . Intercept . | . . Searches Triggered . | . . Construction Impeded . | . . Haulers Reinforced . | . . Active Scanning Responses . | . . Cargo Convoy Interrupts . | . . Stealth | -11 -10 --------- Run | Yrd Mat Distress Signals 2 | . 2 Communications Jammed . | . . Distress Signals . | . . Times Spotted 25 | 1 24 Peak Tracking Total 4 | 1 4 Tactical Retreats 1 | . 1 Traps | -11 -10 ------- Run | Yrd Mat Traps Triggered 1 | . 1 Indirectly . | . . Trap Hack Attempts . | . . Triggered . | . . Disarmed . | . . Reprogrammed . | . . Reused . | . . Traps Extracted . | . . Installed . | . . Triggered . | . . Machines | -11 -10 ---------- Run | Yrd Mat Machines Disabled 2 | . 2 Max in Single Turn 2 | . 2 Machines Repaired . | . . Machines Dismantled . | . . Machines Sabotaged . | . . Overloaded Fab Kills . | . . Hacking | -11 -10 --------- Run | Yrd Mat Machines Accessed 1 | . 1 Terminals 1 | . 1 Fabricators . | . . Repair Stations . | . . Recycling Units . | . . Scanalyzers . | . . Garrison Access . | . . Total Hacks 1 | . 1 Successful 1 | . 1 Failed . | . . Catastrophic . | . . Database Lockouts . | . . Manual . | . . Terminals 1 | . 1 Fabricators . | . . Repair Stations . | . . Recycling Units . | . . Scanalyzers . | . . Garrison Access . | . . Terminal Hacks 1 | . 1 Record 1 | . 1 Fabricator Hacks . | . . Repair Station Hacks . | . . Recycling Unit Hacks . | . . Scanalyzer . | . . Garrison Access Hacks . | . . Unauthorized Hacks . | . . Terminals . | . . Fabricators . | . . Repair Stations . | . . Recycling Units . | . . Scanalyzers . | . . Garrison Access . | . . Data Cores Recovered . | . . Used . | . . Hacking Detections 1 | . 1 Full Trace Events . | . . Feedback Events . | . . Feedback Blocked . | . . Robot Schematics Acquired . | . . Robots Built . | . . Authchips . | . . Time . | . . Total Robot Build Rating . | . . Part Schematics Acquired . | . . Parts Built . | . . Authchips . | . . Time . | . . Total Part Build Rating . | . . Parts Repaired . | . . Time . | . . Parts Recycled . | . . Recycled Matter . | . . Retrieved Matter . | . . Retrieved Components . | . . Parts Scanalyzed . | . . Part Schematics Acquired . | . . Parts Damaged . | . . Bothacking | -11 -10 ------------ Run | Yrd Mat Used RIF Installer . | . . Robots Hacked . | . . Non-combat . | . . Combat . | . . Robot Hacks Applied . | . . Relay Couplers Released . | . . Fabnet Peak Effective % . | . . Robots Rewired . | . . Allies Hacked . | . . Hacks Repelled . | . . Allies | -11 -10 -------- Run | Yrd Mat Total Allies . | . . Largest Group . | . . Highest-Rated Group . | . . Highest-Rated Ally . | . . Total Orders . | . . Ally Attacks . | . . Total Damage . | . . Kills . | . . Allies Corrupted . | . . Allies Melted . | . . Intel | -11 -10 ------- Run | Yrd Mat Robot Analysis Total . | . . Derelict Logs Recovered . | . . Drone Launches . | . . Drone Recoveries . | . . Exploration | -11 -10 ------------- Run | Yrd Mat Turns Passed 1304 | 93 1211 Spaces Moved 415 | 70 345 Core 39 | 18 21 Treads . | . . Legs 201 | 52 149 Wheels 170 | . 170 Hover . | . . Flight 5 | . 5 Fastest Speed 50 | 50 120 Average Speed 273 | 102 307 Slowest Speed 1450 | 120 1450 Overloaded Moves . | . . Propulsion Burnouts . | . . Robots Hopped . | . . Cave-ins Triggered . | . . Exploration Rate (%) 30 | 5 56 Regions Visited 1 Branch Regions . Pre-discovered Areas . | . . Known Exits Taken . | . . Unknown Exits Taken 1 | 1 . Scrap Searched . | . . Spaces Dug . | . . Terrain Destroyed 55 | . 55 Melee . | . . Projectile . | . . AOE 55 | . 55 Terrain Rammed . | . . Walls Destroyed . | . . Machines Disabled . | . . Actions | -11 -10 --------- Run | Yrd Mat Total 509 | 85 424 Wait . | . . Move 414 | 69 345 Hop . | . . Pick Up 21 | 7 14 Fast Attach . | . . Attach 16 | 5 11 Detach 1 | . 1 Swap 4 | . 4 Drop 5 | . 5 Fire 48 | 4 44 Melee . | . . Ram . | . . Kick . | . . Crush . | . . Escape Stasis . | . . Rewire . | . . Trap . | . . Miscellaneous . | . . Route ------- -11/Scrapyard -10/Materials History --------- Turn | Location | Event 2 | -11/Scrapyard | Met Revision 17 71 | -11/Scrapyard | Discovered new exit (range 8) 94 | -11/Scrapyard | Entered Materials 304 | -10/Materials | Build established: Mutant 385 | -10/Materials | Core integrity fell below 50% 590 | -10/Materials | Core integrity fell below 20% 627 | -10/Materials | Lost 3 parts (1p1n1w) 1305 | -10/Materials | Destroyed by G-34 Mercenary with Small Laser Last Messages --------------- S-10 Pest suffers critical hit (Destroy). S-10 Pest destroyed. K-01 Serf collects debris. Acquired Flight Unit. Acquired 20 matter. Acquired Flight Unit. Acquired Lgt. Assault Rifle. Acquired 20 matter. R-06 Scavenger collects Lgt. Ion Engine. K-01 Serf collects debris. R-06 Scavenger collects Flight Unit. K-01 Serf collects debris. Dropped Lgt. Assault Rifle. Dropped Com. Wheel. K-01 Serf collects debris. Ion Engine destroyed. Flight Unit destroyed. G-34 Mercenary destroyed. Switching to secondary target: G-34 Mercenary. R-06 Scavenger collects Aluminum Leg. Map ----- +----------------------------------------------------+ | | | | | | | | | | | | | | | | | | | | | | | | | | | ?????????????????????????????????????????????????? | | ?????????????????????????????????????????????????? | | ?????????????????????????????????????????????????? | | ?????????????????????????????????????????????????? | | ????????????###########??????????????????????????? | | ????????????# ^ #??????????????????????????? | | ????????????#" #??????????????????????????? | | ????????????#T ############################ | | ????????????#" ^"""" # =[ | | ????????????# """" # ###################### | | ????????##### """" # #????????????????????? | | ######### + # #????????????????????? | | # # # @ #????????????????????? | | # #######+### #????????????????????? | | # #????????????????????? | | ! """ + #????????????????????? | | ! """ # #????????????????????? | | ! """ ### #????????????????????? | | #?# #????????????????????? | | #?# t #????????????????????? | | ##+###+##?# ######### #????????????????????? | | ?# #??????# ##+#???????# [ #???????? ? ?????????? | | ?# #???#??# #? ???????# !% #??????? ? ??? ????? | | ?# #?? #??# #? ??????# g r#??????? ??? "?? | | ?# ## ### #? ?""?????# #???????# """ ""? | | ?# T #? ??" ????# ???????# """ ""? | | ##+## ####?? ????????+ ??????# | | #? #?????? ????????# ??????# | | #? ##????? ????????# ##???????# """ | | [#? ?????? ????????# ########## " """ | | #? #????##/##??????# # # T """ | | +##+## #???? ???#### + T # " | | #????? ????? # # | | #????? ?????? # % ??# | | ##### ????? ## #+###?# % | | =#?????# ## # # #####+##### # | | ####### #???????# ## # # # ### | +----------------------------------------------------+ Best States ------------- Heat Dissipation 25 Energy Generation 10 Energy Capacity 250 Matter Stores 294 Matter Capacity 400 Sight Range 16 Terrain Scan Density 10 Evasion (%) 55 Item Schematics ----------------- None Robot Schematics ------------------ None Fabricated ------------ Nothing Alien Tech Used ----------------- None Achievements -------------- Let's See Who's Tougher Challenges ------------ None Game ------ Seed LinearHybridCharge Manual? 0 Play Time 00:11:22 Cumulative 0.9 hours Start 2024.06.14 @ 21:16:15 End 2024.06.14 @ 21:26:19 Sessions 1 Manual Loads 0 Difficulty Rogue Special Mode None Game No. 3 Rogue 3 Adventurer 0 Explorer 0 Win Type - Total 0 Types 0/0/0/0/0/0/0/0/0 Lore% 4 Gallery% 3 Achievement% 3 Wizard Run 0 Options --------- Layout 1 ASCII 0 Keyboard 0 Movement Mouse Keybinds 0 Fullscreen 2 Font 32/SmallcapsGlow Map View 50x35 Zoom Use 0% Tactical HUD 0 Map Filters NONE Filters NONE Steam 1 RUN: ca4d3066-21bb-4ef8-916f-1e89bb89ce8e